Cogmind - Beta 12 *** ADVENTURER MODE // 2023.03.26 @ 23:34:46 Player: Xero Result: Destroyed by as-12138 with Assembled Blade Performance ------------- Evolutions (0) 0 Regions Visited (4) 800 Robots Destroyed (6) 30 Value Destroyed (226) 226 Prototype IDs (1) 20 Alien Tech Used (0) 0 Bonus (0) 0 TOTAL SCORE: 1076 Bonus ------- None Cogmind --------- Core Integrity 0/250 Matter 211/300 Energy 32/100 System Corruption 0% Temperature Cool (0) Movement Treading (160) Location -9/Mines Parts ------- > --- POWER (1) -------- (None) > --- PROPULSION (2) --- Light Treads Light Treads > --- UTILITY (2) ------ Medium Storage Unit Weight Redist. System > --- WEAPON (2) ------- (None) > --- INVENTORY (10) --- Aluminum Leg Aluminum Leg Aluminum Leg Large Storage Unit High-capacity Matter Pod (200) Kinecellerator Peak State ------------ > --- POWER ------------ Micro Nuclear Core > --- PROPULSION ------- Aluminum Leg Aluminum Leg > --- UTILITY ---------- Medium Storage Unit Weight Redist. System > --- WEAPON ----------- Slug Cannon Grenade Launcher > --- INVENTORY -------- Ion Engine Ion Engine Fission Core Light Treads Light Treads Aluminum Leg Aluminum Leg Large Storage Unit High-capacity Matter Pod Flak Gun [Rating: 15] Favorites ----------- Power Ion Engine Engine Ion Engine Power Core Micro Nuclear Core Propulsion Aluminum Leg Treads Light Treads Leg Aluminum Leg Utility Medium Storage Unit Device Weight Redist. System Storage Medium Storage Unit Weapon Grenade Launcher Ballistic Gun Assault Rifle Ballistic Cannon Slug Cannon Launcher Grenade Launcher Build | -11 -10 -10 -10 -9 ------- Run | Jun Mat Min Exi Min Slots Evolved . | . . . . . Power . | . . . . . Propulsion . | . . . . . Utility . | . . . . . Weapon . | . . . . . Parts Attached 20 | 4 5 4 . 7 Power 5 | 1 1 . . 3 Engine 4 | 1 1 . . 2 Core 1 | . . . . 1 Reactor . | . . . . . Propulsion 6 | 2 1 . . 3 Treads 2 | . . . . 2 Leg 4 | 2 1 . . 1 Wheel . | . . . . . Hover . | . . . . . Flight . | . . . . . Utility 5 | . 2 3 . . Device 4 | . 1 3 . . Storage 1 | . 1 . . . Processor . | . . . . . Hackware . | . . . . . Protection . | . . . . . Artifact . | . . . . . Weapon 4 | 1 1 1 . 1 Energy Gun . | . . . . . Energy Cannon . | . . . . . Ballistic Gun 2 | 1 . . . 1 Ballistic Cannon 1 | . . 1 . . Launcher 1 | . 1 . . . Special Weapon . | . . . . . Impact Weapon . | . . . . . Slashing Weapon . | . . . . . Piercing Weapon . | . . . . . Special Melee Weapon . | . . . . . Unidentified Prototypes 1 | . . 1 . . Parts Lost 4 | . . . . 4 Power 1 | . . . . 1 Propulsion 2 | . . . . 2 Utility . | . . . . . Weapon 1 | . . . . 1 Highest Loss Streak 4 | . . . . 4 To Critical Strikes . | . . . . . Average Slot Usage (%) 97 | . 87 99 100 97 Engine 13 | . 14 14 14 13 Leg 27 | . 28 28 28 27 Device 13 | . 7 13 14 14 Storage 13 | . 12 14 14 14 Ballistic Gun 4 | . 14 8 . . Ballistic Cannon 10 | . . 5 14 13 Launcher 13 | . 10 14 14 12 Naked Turns . | . . . . . Heaviest Build 26 | 5 20 25 25 26 Greatest Support 46 | 20 26 26 26 46 Greatest Overweight (x) 1 | 1 . 1 . 1 Average Overweight (x) . | . . . . . Largest Inventory Capacity 10 | 5 10 10 10 10 Average Capacity 9 | 5 9 10 10 10 Most Carried 10 | 3 10 10 10 10 Average Carried 8 | 1 3 9 9 9 Final Capacity 10 | 5 10 10 10 10 Final Carried 10 | 1 10 10 10 6 Class Distribution -------------------- 100% | Mutant Dominant Class ---------------- Mutant | -10/Materials Mutant | -10/Mines Mutant | -10/Exiles Mutant | -9/Mines Resources | -11 -10 -10 -10 -9 ----------- Run | Jun Mat Min Exi Min Matter Collected 518 | 246 90 147 . 35 Remotely . | . . . . . Salvage Created 228 | 39 82 4 . 103 Parts 9 | 2 2 1 . 4 Haulers Intercepted . | . . . . . Recyclers Shooed 1 | . 1 . . . Parts Field Recycled . | . . . . . Retrieved Matter . | . . . . . Parts Self-Destructed . | . . . . . Prevented . | . . . . . Kills | -11 -10 -10 -10 -9 ------- Run | Jun Mat Min Exi Min Combat Hostiles Destroyed 10 | 1 2 1 . 6 Guns 2 | 1 . . . 1 Cannons 4 | . . 1 . 3 AOE 4 | . 2 . . 2 Classes Destroyed 3 | 1 . 1 . 1 Swarmer 1 | . . 1 . . Grunt 5 | 1 2 . . 2 Assembled 4 | . . . . 4 Best Kill Streak 4 | 1 2 1 . 4 Combat Bots Only 4 | 1 2 1 . 4 Max Kills in Single Turn 2 | 1 2 1 . 2 Gunslinging . | . . . . . Exploded 2 | . 2 . . 2 Melee . | . . . . . Uniques/NPCs Destroyed . | . . . . . Combat | -11 -10 -10 -10 -9 -------- Run | Jun Mat Min Exi Min Damage Taken 1025 | 8 . 68 . 949 Core 254 | . . 19 . 235 Absorbed by Shields . | . . . . . Core Remaining (%) 100 | 100 . . . . Volleys Fired 30 | 2 11 7 . 10 Largest 2 | 1 1 1 . 2 Hottest 76 | 20 30 48 . 76 Shots Fired 32 | 2 11 7 . 12 Gun 14 | 2 10 . . 2 Cannon 16 | . . 7 . 9 Launcher 2 | . 1 . . 1 Special . | . . . . . Kinetic 30 | 2 10 7 . 11 Thermal . | . . . . . Explosive 2 | . 1 . . 1 Electromagnetic . | . . . . . Robot Hit Streak 5 | 2 4 1 . 5 Robot Miss Streak 4 | . 2 4 . 3 Penetration Max . | . . . . . Secondary Targets . | . . . . . Shots Hit Robots 17 | 2 8 1 . 6 Core Hits 19 | 2 5 1 . 11 Critical Kills 1 | . . . . 1 Critical Parts Destroyed 2 | . . 1 . 1 Critical Strikes 3 | . . 1 . 2 Destroy 3 | . . 1 . 2 Melee Attacks . | . . . . . Impact . | . . . . . Slashing . | . . . . . Piercing . | . . . . . Sneak Attacks . | . . . . . Combat Hostiles . | . . . . . Follow-up Attacks . | . . . . . Damage Inflicted 458 | 20 159 45 . 234 Guns 145 | 20 88 . . 37 Cannons 177 | . . 45 . 132 Explosions 136 | . 71 . . 65 Melee . | . . . . . Ramming . | . . . . . Kinetic 322 | 20 88 45 . 169 Thermal . | . . . . . Explosive 136 | . 71 . . 65 Electromagnetic . | . . . . . Impact . | . . . . . Slashing . | . . . . . Piercing . | . . . . . Highest Corruption . | . . . . . Average Corruption . | . . . . . Corruption Purged . | . . . . . Corruption Blocked . | . . . . . Overload Shots . | . . . . . Overflow Damage . | . . . . . Projectiles . | . . . . . Explosions . | . . . . . Melee . | . . . . . Knockbacks 3 | . . 1 . 2 Impact . | . . . . . Kinetic 2 | . . 1 . 1 Secondary 1 | . . . . 1 Self-Inflicted Damage . | . . . . . Shots . | . . . . . Rammed . | . . . . . Targets Rammed . | . . . . . Kicked . | . . . . . Crushed . | . . . . . Highest Temperature 32 | . . 32 . 30 Average Temperature 11 | . . 12 . 11 Received Heat Transfer 6 | 6 . . . . Siege Activations . | . . . . . Robots Corrupted . | . . . . . Combat Hostiles . | . . . . . Parts Fried . | . . . . . Impact Corruptions . | . . . . . Robots Melted . | . . . . . Combat Hostiles . | . . . . . Parts Melted . | . . . . . Heat Transferred . | . . . . . Parts Sabotaged . | . . . . . Parts Stolen . | . . . . . Parts Stripped . | . . . . . Power Chain Reactions . | . . . . . Missiles Intercepted . | . . . . . Alert | -11 -10 -10 -10 -9 ------- Run | Jun Mat Min Exi Min Peak Influence 137 | 20 113 137 . 68 Initial 36 | . 11 36 . . Average 36 | 4 50 59 . 8 Maximum Alert Level . | . . . . . Low Security (%) 100 | 100 100 100 . 100 Level 1 . | . . . . . Level 2 . | . . . . . Level 3 . | . . . . . Level 4 . | . . . . . Level 5 . | . . . . . High Security . | . . . . . Max Security . | . . . . . Squads Dispatched 1 | . 1 . . . Investigation 1 | . 1 . . . Extermination . | . . . . . Reinforcement . | . . . . . Assault . | . . . . . Garrison . | . . . . . Intercept . | . . . . . Searches Triggered . | . . . . . Construction Impeded . | . . . . . Haulers Reinforced . | . . . . . Active Scanning Responses . | . . . . . Cargo Convoy Interrupts . | . . . . . Stealth | -11 -10 -10 -10 -9 --------- Run | Jun Mat Min Exi Min Distress Signals 2 | . 2 . . . Communications Jammed . | . . . . . Distress Signals . | . . . . . Times Spotted 38 | 1 9 6 . 22 Peak Tracking Total 11 | 1 4 3 . 11 Tactical Retreats 6 | . 2 4 . . Traps | -11 -10 -10 -10 -9 ------- Run | Jun Mat Min Exi Min Traps Triggered . | . . . . . Indirectly . | . . . . . Trap Hack Attempts . | . . . . . Triggered . | . . . . . Disarmed . | . . . . . Reprogrammed . | . . . . . Reused . | . . . . . Traps Extracted . | . . . . . Installed . | . . . . . Triggered . | . . . . . Machines | -11 -10 -10 -10 -9 ---------- Run | Jun Mat Min Exi Min Machines Disabled 2 | . . 1 . 1 Max in Single Turn 1 | . . 1 . 1 Machines Repaired . | . . . . . Machines Sabotaged . | . . . . . Overloaded Fab Kills . | . . . . . Hacking | -11 -10 -10 -10 -9 --------- Run | Jun Mat Min Exi Min Machines Accessed 6 | . . 1 4 1 Terminals . | . . . . . Fabricators . | . . . . . Repair Stations . | . . . . . Recycling Units . | . . . . . Scanalyzers . | . . . . . Garrison Access . | . . . . . Total Hacks 51 | . . 1 49 1 Successful 51 | . . 1 49 1 Failed . | . . . . . Catastrophic . | . . . . . Database Lockouts . | . . . . . Manual . | . . . . . Terminals . | . . . . . Fabricators . | . . . . . Repair Stations . | . . . . . Recycling Units . | . . . . . Scanalyzers . | . . . . . Garrison Access . | . . . . . Terminal Hacks 51 | . . 1 49 1 Record 49 | . . . 49 . Open Door 2 | . . 1 . 1 Fabricator Hacks . | . . . . . Repair Station Hacks . | . . . . . Recycling Unit Hacks . | . . . . . Scanalyzer . | . . . . . Garrison Access Hacks . | . . . . . Unauthorized Hacks . | . . . . . Terminals . | . . . . . Fabricators . | . . . . . Repair Stations . | . . . . . Recycling Units . | . . . . . Scanalyzers . | . . . . . Garrison Access . | . . . . . Data Cores Recovered . | . . . . . Used . | . . . . . Hacking Detections . | . . . . . Full Trace Events . | . . . . . Feedback Events . | . . . . . Feedback Blocked . | . . . . . Robot Schematics Acquired . | . . . . . Robots Built . | . . . . . Authchips . | . . . . . Time . | . . . . . Total Robot Build Rating . | . . . . . Part Schematics Acquired . | . . . . . Parts Built . | . . . . . Authchips . | . . . . . Time . | . . . . . Total Part Build Rating . | . . . . . Parts Repaired . | . . . . . Time . | . . . . . Parts Recycled . | . . . . . Recycled Matter . | . . . . . Retrieved Matter . | . . . . . Retrieved Components . | . . . . . Parts Scanalyzed . | . . . . . Part Schematics Acquired . | . . . . . Parts Damaged . | . . . . . Bothacking | -11 -10 -10 -10 -9 ------------ Run | Jun Mat Min Exi Min Used RIF Installer . | . . . . . Robots Hacked . | . . . . . Non-combat . | . . . . . Combat . | . . . . . Robot Hacks Applied . | . . . . . Relay Couplers Released . | . . . . . Fabnet Peak Effective % . | . . . . . Robots Rewired . | . . . . . Allies Hacked . | . . . . . Hacks Repelled . | . . . . . Allies | -11 -10 -10 -10 -9 -------- Run | Jun Mat Min Exi Min Total Allies 2 | . . . . 2 Largest Group 2 | . . . . 2 Highest-Rated Group 45 | . . . . 45 Highest-Rated Ally 31 | . . . . 31 Total Orders . | . . . . . Ally Attacks 7 | . . . . 7 Total Damage 85 | . . . . 85 Kills 1 | . . . . 1 Allies Corrupted . | . . . . . Allies Melted . | . . . . . Intel | -11 -10 -10 -10 -9 ------- Run | Jun Mat Min Exi Min Robot Analysis Total . | . . . . . Derelict Logs Recovered 3 | . . 1 . 2 Drone Launches 3 | . . 3 . . Drone Recoveries . | . . . . . Exploration | -11 -10 -10 -10 -9 ------------- Run | Jun Mat Min Exi Min Turns Passed 2572 | 53 312 662 906 639 Spaces Moved 2010 | 61 219 521 747 462 Core 52 | 52 . . . . Treads 8 | . . . . 8 Legs 1950 | 9 219 521 747 454 Wheels . | . . . . . Hover . | . . . . . Flight . | . . . . . Fastest Speed 50 | 50 120 120 120 120 Average Speed 118 | 62 120 120 120 121 Slowest Speed 190 | 120 120 190 120 190 Overloaded Moves . | . . . . . Propulsion Burnouts . | . . . . . Robots Hopped . | . . . . . Cave-ins Triggered . | . . . . . Exploration Rate (%) 56 | 5 36 85 92 63 Regions Visited 4 Branch Regions 3 Pre-discovered Areas 4 | . . 1 1 2 Known Exits Taken . | . . . . . Unknown Exits Taken 4 | 1 1 1 1 . Scrap Searched 2 | . . 1 . 1 Spaces Dug . | . . . . . Terrain Destroyed 19 | . 8 3 . 8 Melee . | . . . . . Projectile 6 | . . 3 . 3 AOE 13 | . 8 . . 5 Terrain Rammed . | . . . . . Walls Destroyed . | . . . . . Machines Disabled . | . . . . . Actions | -11 -10 -10 -10 -9 --------- Run | Jun Mat Min Exi Min Total 2170 | 73 256 551 760 530 Wait 59 | 2 8 6 . 43 Move 2006 | 60 218 520 746 462 Hop . | . . . . . Pick Up 33 | 5 13 4 7 4 Fast Attach 1 | . . 1 . . Attach 13 | 4 3 2 . 4 Detach . | . . . . . Swap 6 | . 2 1 . 3 Drop 17 | . 1 5 7 4 Fire 30 | 2 11 7 . 10 Melee . | . . . . . Ram . | . . . . . Kick . | . . . . . Crush . | . . . . . Escape Stasis . | . . . . . Rewire 5 | . . 5 . . Trap . | . . . . . Miscellaneous . | . . . . . Route ------- -11/Junkyard -10/Materials -10/Mines (discovered 3 exits: [*Mat x2] / *Exi) -10/Exiles (discovered 2 exits: *Min x2) -9/Mines (discovered 1 exit: [*Mat]) History --------- Turn | Location | Event 2 | -11/Junkyard | Met Revision 17 30 | -11/Junkyard | Discovered new exit (range 8) 54 | -11/Junkyard | Entered Materials 135 | -10/Materials | Met 8R-AWN 317 | -10/Materials | Build established: Mutant 317 | -10/Materials | Discovered new exit (range 9) 366 | -10/Materials | Entered Mines 367 | -10/Mines | Followed 8R-AWN into the Mines 397 | -10/Mines | Learned Materials terminal intel 418 | -10/Mines | Discovered new exit (range 10) 434 | -10/Mines | Learned location of Storage (-8) 536 | -10/Mines | Found the Drone Emporium 544 | -10/Mines | Found Prototype Device 547 | -10/Mines | Identified Thief Drone Bay 590 | -10/Mines | Discovered new exit (range 5) 747 | -10/Mines | A weapon hastily lodged in a ceiling crevice suddenly fell to the ground 899 | -10/Mines | Discovered new exit (range 8) 901 | -10/Mines | Joined a pair of Derelicts in attacking an 0b10 outpost 1028 | -10/Mines | Entered Exiles 1094 | -10/Exiles | Welcomed by 8R-AWN 1130 | -10/Exiles | Met EX-HEX 1178 | -10/Exiles | Met EX-BIN 1312 | -10/Exiles | Met EX-DEC 1346 | -10/Exiles | Learned location of Zion (-7) 1409 | -10/Exiles | Discovered new exit (range 11) 1552 | -10/Exiles | Visited The Gauntlet 1869 | -10/Exiles | Learned about 8R-AWN's background 1897 | -10/Exiles | Discovered new exit (range 15) 1934 | -10/Exiles | Entered Mines 1946 | -9/Mines | Discovered new exit (range 11) 2057 | -9/Mines | Met a Derelict who couldn't figure out how to use a Trap Extractor 2509 | -9/Mines | Assembled infested the area 2551 | -9/Mines | Core integrity fell below 50% 2560 | -9/Mines | Core integrity fell below 20% 2573 | -9/Mines | Destroyed by as-12138 with Assembled Blade Last Messages --------------- 02542_ U-05 Engineer lays Concrete. 02545_ as-00623 suffers critical hit (Destroy). 02545_ Destroyed Asb. Maul. 02545_ as-00623 knocked back. 02546_ R-06 Scavenger collects Mak. Leg. 02548_ Aluminum Leg destroyed. 02548_ as-00623 destroyed. 02550_ R-06 Scavenger destroyed. 02550_ Slug Cannon severed. 02558_ Aluminum Leg destroyed. 02559_ Ion Engine destroyed. 02560_ Flak Gun severed. 02563_ as-70085 destroyed. 02567_ U-05 Engineer lays Concrete. 02570_ U-05 Engineer builds a Wall. 02570_ U-05 Engineer lays Concrete. [Achievement: First Step to Greatness] The achievement interface (ESC then open Records) offers an effective way to explore all of your earned achievements as well as seek out new goals for future runs. Map ----- +----------------------------------------------------+ | ##??# #### ##??????????????????????????? | | #??# ##??## #??????????????????????????? | | ???# #????## #??????????????????????????? | | ???## ##?????## #??????????????????????????? | | #???####???????# #??????????????????????????? | | ##?????????????# #??????????????????????????? | | #########?????## ##??????????????????????????? | | [%!#??????## ##???????????????????????????? | | #######[ #???????## #????????????????????????????? | | #?????# #????????# #????????????????????????????? | | ??????# ########## ##???????????????????????????? | | ??????# #???????????????#???????????? | | ??????# #????????###??? #???????????? | | ??????############# ######### ### #???????????? | | ??????????????????# #???????????? | | ??????????????????# %% #???????????? | | ???????????????#### * % # ####???????????? | | ?????????????### #?????????????? | | ???????????### u # %[ ??????????????? | | ??????????## d## #!* ???????????????? | | ?????????## ## ##% #???????????????? | | ?????????# % u ## #???????????????? | | ??? ## [ ????????????????? | | ???# ## #?????????????????? | | ????### ##### a # #####?????????????? | | ??????# ?????## @ ## ##????????????? | | ???????????????# ##???????????? | | ???????????????# #??########?? | | ???????????????## #### #?? | | ????????????????## ### ### #?? | | ?????????????????#####?## #?? | | ????????????????????????## % #?? | | ?????????????????????????## #### #?? | | ??????????????????????????# ####### " #?? | | ??????????????????????????## ####?????# " " #?? | | ???????????????????????????# ##????????# """ #?? | | ??????????????????????????## #?????????########?? | | ??????????????????????????# #??????????????????? | | ?????????????????????????# #??????????????????? | | ?????????????????????????# #??????????????????? | | ?????????????????????????# ##??????????????????? | | ?????????????????????????####????????????????????? | | ?????????????????????????????????????????????????? | | | | | | | | | | | | | | | +----------------------------------------------------+ Best States ------------- Heat Dissipation 25 Energy Generation 10 Energy Capacity 250 Matter Stores 300 Matter Capacity 300 Sight Range 16 Terrain Scan Density 10 Additional Mass Support 6 Resistance: KI 20 Resistance: TH 20 Resistance: EX 20 Resistance: EM 20 Resistance: I 20 Resistance: S 20 Resistance: P 20 Evasion (%) 55 Recoil Reduction 2 Offensive Hacking 10 Item Schematics ----------------- None Robot Schematics ------------------ None Fabricated ------------ Nothing Alien Tech Used ----------------- None Achievements -------------- First Step to Greatness Risk Taker Tourist Challenges ------------ None Game ------ Seed GammaReactionStreamer Manual? 0 Play Time 00:53:52 Cumulative 3.3 hours Start 2023.03.26 @ 16:45:59 End 2023.03.26 @ 23:34:46 Sessions 5 Manual Loads 0 Difficulty Adventurer Special Mode None Game No. 3 Rogue 0 Adventurer 3 Explorer 0 Win Type - Total 0 Types 0/0/0/0/0/0/0/0/0 Lore% 9 Gallery% 5 Achievement% 4 Wizard Run 0 Options --------- ASCII 0 Keyboard 0 Movement Mouse Keybinds 0 Fullscreen 1 Font 18/Terminus Map View 76x50 Tactical HUD 1 Map Filters NONE Filters NONE Steam 1 RUN: 9821a626-8198-4544-9ccd-81bfddd0616f